fUST/lending_fUST_20250208
["ID","MTS","AMOUNT","RATE_DAILY","PERIOD"]
[352242710,1739014242363,-500.0,0.00011232,2]
[352242711,1739014242373,-500.0,0.00011232,2]
[352242712,1739014242382,-500.0,0.00011232,2]
[352242713,1739014242392,-500.0,0.00011232,2]
[352242714,1739014242401,-500.0,0.00011232,2]
[352242715,1739014242411,-500.0,0.00011232,2]
[352242716,1739014242420,-279.00637962,0.00011232,2]
[352242717,1739014242429,-500.0,0.00011232,2]
[352242718,1739014242439,-500.0,0.00011232,2]
[352242719,1739014242448,-500.0,0.00011232,2]
[352242720,1739014242457,-500.0,0.00011232,2]
[352242721,1739014242467,-500.0,0.00011232,2]
[352242722,1739014242477,-500.0,0.00011232,2]
[352242723,1739014242486,-500.0,0.00011232,2]
[352242724,1739014242496,-282.62964998,0.00011232,2]
[352242725,1739014242505,-500.0,0.00011232,2]
[352242726,1739014242515,-500.0,0.00011232,2]
[352242727,1739014242524,-668.96,0.00011232,2]
[352242728,1739014242533,-500.0,0.00011232,2]
[352242729,1739014242543,-236.93711305,0.00011232,2]
[352242730,1739014242553,-365.73,0.00011232,2]
[352242731,1739014242562,-500.0,0.00011232,2]
[352242732,1739014242571,-631.69,0.00011232,2]
[352242733,1739014242580,-500.0,0.00011232,2]
[352242734,1739014242590,-500.0,0.00011232,2]
[352242735,1739014242599,-1314.48,0.00011232,2]
[352242736,1739014242608,-500.0,0.00011232,2]
[352242737,1739014242618,-500.0,0.00011232,2]
[352242738,1739014242627,-1339.1,0.00011232,2]
[352242739,1739014242636,-518.1928402,0.00011232,2]
[352242740,1739014242645,-500.0,0.00011232,2]
[352242741,1739014242655,-500.0,0.00011232,2]
[352242742,1739014242664,-500.0,0.00011232,2]
[352242743,1739014242672,-500.0,0.00011232,2]
[352242744,1739014242682,-500.0,0.00011232,2]
[352242745,1739014242691,-500.0,0.00011232,2]
[352242746,1739014242700,-811.94,0.00011232,2]
[352242747,1739014242710,-500.0,0.00011232,2]
[352242748,1739014242719,-500.0,0.00011232,2]
[352242749,1739014242729,-500.0,0.00011232,2]
[352242750,1739014242739,-500.0,0.00011232,2]
[352242751,1739014242748,-500.0,0.00011232,2]
[352242752,1739014242758,-500.0,0.00011232,2]
[352242753,1739014242768,-500.0,0.00011232,2]
[352242754,1739014242777,-500.0,0.00011232,2]
[352242755,1739014242787,-500.0,0.00011232,2]
[352242756,1739014242796,-588.8,0.00011232,2]
[352242757,1739014242805,-720.78,0.00011232,2]
[352242758,1739014242815,-500.0,0.00011232,2]
[352242759,1739014242826,-500.0,0.00011232,2]
[352242760,1739014242835,-1458.39,0.00011232,2]
[352242761,1739014242844,-500.0,0.00011232,2]
[352242762,1739014242854,-1523.95,0.00011232,2]
[352242763,1739014242865,-500.0,0.00011232,2]
[352242764,1739014242875,-500.0,0.00011232,2]
[352242765,1739014242885,-500.0,0.00011232,2]
[352242767,1739014242896,-839.96,0.00011232,2]
[352242769,1739014242905,-500.0,0.00011232,2]
[352242770,1739014242914,-500.0,0.00011232,2]
[352242771,1739014242924,-500.0,0.00011232,2]
[352242772,1739014242934,-774.62,0.00011232,2]
[352242773,1739014242943,-500.0,0.00011232,2]
[352242774,1739014242953,-918.84,0.00011232,2]
[352242775,1739014242962,-500.0,0.00011232,2]
[352242776,1739014242971,-500.0,0.00011232,2]
[352242777,1739014242981,-638.39880981,0.00011232,2]
[352242778,1739014242990,-500.0,0.00011232,2]
[352242779,1739014242998,-500.0,0.00011232,2]
[352242780,1739014243007,-596.08398438,0.00011232,2]
[352242781,1739014243020,-500.0,0.00011232,2]
[352242782,1739014243029,-500.0,0.00011232,2]
[352242783,1739014243038,-500.0,0.00011232,2]
[352242784,1739014243047,-710.16,0.00011232,2]
[352242785,1739014243056,-500.0,0.00011232,2]
[352242786,1739014243066,-500.0,0.00011232,2]
[352242787,1739014243075,-500.0,0.00011232,2]
[352242788,1739014243084,-500.0,0.00011232,2]
[352242789,1739014243094,-1264.3,0.00011232,2]
[352242791,1739014243102,-500.0,0.00011232,2]
[352242793,1739014243111,-500.0,0.00011232,2]
[352242795,1739014243121,-500.0,0.00011232,2]
[352242797,1739014243130,-500.0,0.00011232,2]
[352242799,1739014243139,-500.0,0.00011232,2]
[352242801,1739014243148,-1091.56,0.00011232,2]
[352242803,1739014243157,-500.0,0.00011232,2]
[352242805,1739014243166,-1462.36,0.00011232,2]
[352242807,1739014243175,-500.0,0.00011232,2]
[352242809,1739014243185,-243.74158017,0.00011232,2]
[352242811,1739014243194,-500.0,0.00011232,2]
[352242813,1739014243204,-500.0,0.00011232,2]
[352242815,1739014243213,-500.0,0.00011232,2]
[352242817,1739014243222,-500.0,0.00011232,2]
[352242819,1739014243231,-801.57,0.00011232,2]
[352242821,1739014243240,-500.0,0.00011232,2]
[352242823,1739014243249,-500.0,0.00011232,2]
[352242825,1739014243258,-500.0,0.00011232,2]
[352242827,1739014243267,-795.93,0.00011232,2]
[352242829,1739014243277,-500.0,0.00011232,2]
[352242831,1739014243286,-4049.86,0.00011232,2]
[352242833,1739014243295,-500.0,0.00011232,2]
[352242835,1739014243305,-500.0,0.00011232,2]
[352242837,1739014243314,-1249.67,0.00011232,2]
[352242839,1739014243323,-500.0,0.00011232,2]
[352242841,1739014243332,-1812.77,0.00011232,2]
[352242843,1739014243342,-500.0,0.00011232,2]
[352242845,1739014243351,-500.0,0.00011232,2]
[352242847,1739014243360,-500.0,0.00011232,2]
[352242849,1739014243369,-500.0,0.00011232,2]
[352242851,1739014243378,-514.99,0.00011232,2]
[352242852,1739014243387,-500.0,0.00011232,2]
[352242853,1739014243397,-1477.59,0.00011232,2]
[352242854,1739014243406,-500.0,0.00011232,2]
[352242855,1739014243415,-500.0,0.00011232,2]
[352242856,1739014243424,-500.0,0.00011232,2]
[352242857,1739014243433,-500.0,0.00011232,2]
[352242858,1739014243442,-500.0,0.00011232,2]
[352242859,1739014243452,-4159.53,0.00011232,2]
[352242860,1739014243461,-500.0,0.00011232,2]
[352242861,1739014243470,-500.0,0.00011232,2]
[352242862,1739014243479,-500.0,0.00011232,2]
[352242863,1739014243488,-1685.04,0.00011232,2]
[352242864,1739014243497,-5561.26,0.00011232,2]
[352242865,1739014243507,-1228.03,0.00011232,2]
[352242866,1739014243516,-2115.37,0.00011232,2]
[352242867,1739014243526,-500.0,0.00011232,2]
[352242868,1739014243535,-16725.12,0.00011232,2]
[352242869,1739014243545,-500.0,0.00011232,2]
[352242870,1739014243554,-500.0,0.00011232,2]
[352242871,1739014243563,-1445.5,0.00011232,2]
[352242872,1739014243572,-500.0,0.00011232,2]
[352242873,1739014243582,-500.0,0.00011232,2]
[352242875,1739014243591,-983.36,0.00011232,2]
[352242877,1739014243605,-247.76174579,0.00011232,2]
[352242878,1739014243619,-500.0,0.00011232,2]
[352242879,1739014243635,-47197.88,0.00011232,2]
[352242880,1739014243648,-534.55,0.00011232,2]
[352242881,1739014243659,-1969.37,0.00011232,2]
[352242884,1739014243672,-500.0,0.00011232,2]
[352242886,1739014243689,-579.46,0.00011232,2]
[352242888,1739014243704,-1474.87,0.00011232,2]
[352242890,1739014243716,-500.0,0.00011232,2]
[352242893,1739014243730,-2098.99,0.00011232,2]
[352242895,1739014243742,-500.0,0.00011232,2]
[352242898,1739014243756,-500.0,0.00011232,2]
[352242900,1739014243770,-500.0,0.00011232,2]
[352242903,1739014243784,-1998.66,0.00011232,2]
[352242905,1739014243797,-557.71,0.00011232,2]
[352242907,1739014243809,-1227.56,0.00011232,2]
[352242909,1739014243825,-500.0,0.00011232,2]
[352242912,1739014243838,-672.32,0.00011232,2]
[352242914,1739014243851,-500.0,0.00011232,2]
[352242916,1739014243863,-500.0,0.00011232,2]
[352242919,1739014243875,-500.0,0.00011232,2]
[352242921,1739014243886,-500.0,0.00011232,2]
[352242923,1739014243898,-1479.92,0.00011232,2]
[352242925,1739014243910,-500.0,0.00011232,2]
[352242928,1739014243922,-500.0,0.00011232,2]
[352242930,1739014243935,-500.0,0.00011232,2]
[352242932,1739014243948,-500.0,0.00011232,2]
[352242935,1739014243961,-500.0,0.00011232,2]
[352242937,1739014243974,-500.0,0.00011232,2]
[352242940,1739014243988,-500.0,0.00011232,2]
[352242942,1739014243999,-638.99,0.00011232,2]
[352242944,1739014244009,-4209.68,0.00011232,2]
[352242946,1739014244020,-3487.73,0.00011232,2]
[352242948,1739014244032,-856.23,0.00011232,2]
[352242951,1739014244046,-4164.04,0.00011232,2]
[352242953,1739014244058,-500.0,0.00011232,2]
[352242956,1739014244070,-893.61,0.00011232,2]
[352242958,1739014244080,-500.0,0.00011232,2]
[352242960,1739014244091,-1749.15,0.00011232,2]
[352242962,1739014244102,-1747.62,0.00011232,2]
[352242964,1739014244115,-9145.14,0.00011232,2]
[352242967,1739014244126,-500.0,0.00011232,2]
[352242969,1739014244137,-935.88,0.00011232,2]
[352242971,1739014244147,-500.0,0.00011232,2]
[352242973,1739014244158,-1603.73,0.00011232,2]
[352242975,1739014244169,-500.0,0.00011232,2]
[352242977,1739014244180,-500.0,0.00011232,2]
[352242980,1739014244191,-664.04,0.00011232,2]
[352242982,1739014244202,-1378.16,0.00011232,2]
[352242984,1739014244213,-500.0,0.00011232,2]
[352242986,1739014244224,-500.0,0.00011232,2]
[352242989,1739014244235,-500.0,0.00011232,2]
[352242991,1739014244247,-651.17,0.00011232,2]
[352242993,1739014244257,-4646.5,0.00011232,2]
[352242995,1739014244268,-500.0,0.00011232,2]
[352242997,1739014244279,-500.0,0.00011232,2]
[352242999,1739014244289,-16242.73,0.00011232,2]
[352243002,1739014244300,-500.0,0.00011232,2]
[352243004,1739014244311,-546.78,0.00011232,2]
[352243006,1739014244322,-500.0,0.00011232,2]
[352243008,1739014244333,-1100.89,0.00011232,2]
[352243010,1739014244345,-500.0,0.00011232,2]
[352243012,1739014244355,-1713.87,0.00011232,2]
[352243015,1739014244368,-500.0,0.00011232,2]
[352243017,1739014244380,-3040.25,0.00011232,2]
[352243019,1739014244391,-12642.63025833,0.00011256,2]
[352243022,1739014244403,-151.0,0.000113,2]
[352243024,1739014244414,-151.0,0.000113,2]
[352243026,1739014244425,-198.48339176,0.00011369,2]
[352243028,1739014244436,-500.0,0.00011369,2]
[352243031,1739014244448,-500.0,0.00011369,2]
[352243033,1739014244459,-500.0,0.00011369,2]
[352243035,1739014244470,-500.0,0.00011369,2]
[352243037,1739014244481,-500.0,0.00011369,2]
[352243039,1739014244492,-500.0,0.00011369,2]
[352243042,1739014244503,-500.0,0.00011369,2]
[352243044,1739014244514,-500.0,0.00011369,2]
[352243046,1739014244524,-500.0,0.00011369,2]
[352243048,1739014244535,-500.0,0.00011369,2]
[352243050,1739014244547,-500.0,0.00011369,2]
[352243053,1739014244558,-500.0,0.00011369,2]
[352243055,1739014244569,-516.85427274,0.00011369,2]
[352243057,1739014244579,-500.0,0.00011369,2]
[352243059,1739014244590,-500.0,0.00011369,2]
[352243061,1739014244601,-668.96,0.00011369,2]
[352243063,1739014244612,-500.0,0.00011369,2]
[352243065,1739014244623,-500.0,0.00011369,2]
[352243068,1739014244635,-631.69,0.00011369,2]
[352243070,1739014244646,-500.0,0.00011369,2]
[352243072,1739014244657,-500.0,0.00011369,2]
[352243075,1739014244669,-1314.48,0.00011369,2]
[352243077,1739014244680,-500.0,0.00011369,2]
[352243079,1739014244691,-500.0,0.00011369,2]
[352243081,1739014244702,-1339.1,0.00011369,2]
[352243083,1739014244713,-500.0,0.00011369,2]
[352243085,1739014244724,-500.0,0.00011369,2]
[352243088,1739014244735,-500.0,0.00011369,2]
[352243090,1739014244746,-500.0,0.00011369,2]
[352243092,1739014244757,-500.0,0.00011369,2]
[352243094,1739014244768,-500.0,0.00011369,2]
[352243096,1739014244779,-811.94,0.00011369,2]
[352243099,1739014244790,-500.0,0.00011369,2]
[352243101,1739014244801,-500.0,0.00011369,2]
[352243103,1739014244812,-500.0,0.00011369,2]
[352243105,1739014244826,-500.0,0.00011369,2]
[352243108,1739014244837,-500.0,0.00011369,2]
[352243110,1739014244849,-500.0,0.00011369,2]
[352243112,1739014244861,-438.53863776,0.00011369,2]
[352243114,1739014244873,-500.0,0.00011369,2]
[352243116,1739014244885,-500.0,0.00011369,2]
[352243119,1739014244897,-588.8,0.00011369,2]
[352243121,1739014244909,-720.78,0.00011369,2]
[352243123,1739014244921,-500.0,0.00011369,2]
[352243125,1739014244932,-500.0,0.00011369,2]
[352243127,1739014244943,-1458.39,0.00011369,2]
[352243130,1739014244955,-500.0,0.00011369,2]
[352243132,1739014244965,-1523.95,0.00011369,2]
[352243134,1739014244976,-500.0,0.00011369,2]
[352243136,1739014244987,-500.0,0.00011369,2]
[352243138,1739014244998,-500.0,0.00011369,2]
[352243141,1739014245010,-839.96,0.00011369,2]
[352243143,1739014245022,-500.0,0.00011369,2]
[352243145,1739014245033,-500.0,0.00011369,2]
[352243147,1739014245044,-500.0,0.00011369,2]
[352243150,1739014245055,-774.62,0.00011369,2]
[352243152,1739014245067,-500.0,0.00011369,2]
[352243154,1739014245078,-918.84,0.00011369,2]
[352243156,1739014245089,-500.0,0.00011369,2]
[352243158,1739014245101,-245.63,0.00011369,2]
[352243161,1739014245112,-500.0,0.00011369,2]
[352243163,1739014245123,-500.0,0.00011369,2]
[352243165,1739014245134,-710.16,0.00011369,2]
[352243167,1739014245143,-500.0,0.00011369,2]
[352243169,1739014245152,-226.68405958,0.00011369,2]
[352243171,1739014245161,-500.0,0.00011369,2]
[352243172,1739014245170,-1264.3,0.00011369,2]
[352243173,1739014245180,-500.0,0.00011369,2]
[352243174,1739014245189,-151.0,0.00011369,2]
[352243175,1739014245199,-500.0,0.00011369,2]
[352243176,1739014245208,-500.0,0.00011369,2]
[352243178,1739014245218,-500.0,0.00011369,2]
[352243188,1739014245419,-500.0,0.00011369,2]
[352243189,1739014245442,-1091.56,0.00011369,2]
[352243190,1739014245458,-151.0,0.00011369,2]
[352243191,1739014245468,-500.0,0.00011369,2]
[352243192,1739014245478,-1462.36,0.00011369,2]
[352243193,1739014245487,-500.0,0.00011369,2]
[352243194,1739014245507,-500.0,0.00011369,2]
[352243195,1739014245518,-151.0,0.00011369,2]
[352243196,1739014245527,-500.0,0.00011369,2]
[352243197,1739014245536,-151.0,0.00011369,2]
[352243198,1739014245546,-500.0,0.00011369,2]
[352243199,1739014245555,-151.0,0.00011369,2]
[352243200,1739014245565,-801.57,0.00011369,2]
[352243201,1739014245574,-185.95499664,0.00011369,2]
[352243202,1739014245583,-222.94555897,0.00011369,2]
[352243203,1739014245593,-151.0,0.00011369,2]
[352243204,1739014245603,-285.219417,0.00011369,2]
[352243205,1739014245612,-513.93161765,0.00011369,2]
[352243206,1739014245621,-795.93,0.00011369,2]
[352243207,1739014245631,-500.0,0.00011369,2]
[352243208,1739014245640,-4049.86,0.00011369,2]
[352243209,1739014245649,-500.0,0.00011369,2]
[352243210,1739014245658,-500.0,0.00011369,2]
[352243211,1739014245667,-1249.67,0.00011369,2]
[352243212,1739014245677,-500.0,0.00011369,2]
[352243213,1739014245686,-1812.77,0.00011369,2]
[352243214,1739014245696,-500.0,0.00011369,2]
[352243215,1739014245705,-500.0,0.00011369,2]
[352243216,1739014245714,-644.854219,0.00011369,2]
[352243217,1739014245724,-500.0,0.00011369,2]
[352243218,1739014245732,-500.0,0.00011369,2]
[352243219,1739014245742,-514.99,0.00011369,2]
[352243220,1739014245751,-644.854219,0.00011369,2]
[352243221,1739014245761,-500.0,0.00011369,2]
[352243222,1739014245770,-1477.59,0.00011369,2]
[352243223,1739014245779,-500.0,0.00011369,2]
[352243224,1739014245788,-163.705868,0.00011369,2]
[352243225,1739014245797,-500.0,0.00011369,2]
[352243226,1739014245806,-163.705868,0.00011369,2]
[352243227,1739014245817,-500.0,0.00011369,2]
[352243228,1739014245827,-4159.53,0.00011369,2]
[352243229,1739014245836,-500.0,0.00011369,2]
[352243230,1739014245845,-500.0,0.00011369,2]
[352243231,1739014245855,-1685.04,0.00011369,2]
[352243232,1739014245865,-500.0,0.00011369,2]
[352243233,1739014245874,-5561.26,0.00011369,2]
[352243234,1739014245883,-1228.03,0.00011369,2]
[352243235,1739014245892,-2115.37,0.00011369,2]
[352243236,1739014245902,-500.0,0.00011369,2]
[352243237,1739014245912,-16725.12,0.00011369,2]
[352243238,1739014245922,-500.0,0.00011369,2]
[352243239,1739014245931,-500.0,0.00011369,2]
[352243240,1739014245940,-1445.5,0.00011369,2]
[352243241,1739014245949,-500.0,0.00011369,2]
[352243242,1739014245958,-500.0,0.00011369,2]
[352243243,1739014245968,-983.36,0.00011369,2]
[352243244,1739014245976,-245.011434,0.00011369,2]
[352243245,1739014245986,-500.0,0.00011369,2]
[352243246,1739014245995,-47197.88,0.00011369,2]
[352243247,1739014246004,-534.55,0.00011369,2]
[352243248,1739014246013,-1969.37,0.00011369,2]
[352243249,1739014246022,-151.0,0.00011369,2]
[352243250,1739014246031,-245.011434,0.00011369,2]
[352243251,1739014246040,-500.0,0.00011369,2]
[352243252,1739014246049,-579.46,0.00011369,2]
[352243253,1739014246058,-1474.87,0.00011369,2]
[352243254,1739014246067,-803.136992,0.00011369,2]
[352243255,1739014246077,-500.0,0.00011369,2]
[352243256,1739014246086,-2098.99,0.00011369,2]
[352243257,1739014246095,-803.136992,0.00011369,2]
[352243258,1739014246104,-500.0,0.00011369,2]
[352243259,1739014246113,-500.0,0.00011369,2]
[352243260,1739014246123,-500.0,0.00011369,2]
[352243261,1739014246132,-1998.66,0.00011369,2]
[352243262,1739014246142,-557.71,0.00011369,2]
[352243263,1739014246152,-1227.56,0.00011369,2]
[352243264,1739014246161,-500.0,0.00011369,2]
[352243265,1739014246171,-672.32,0.00011369,2]
[352243266,1739014246180,-151.0,0.00011369,2]
[352243267,1739014246189,-500.0,0.00011369,2]
[352243268,1739014246199,-500.0,0.00011369,2]
[352243269,1739014246209,-500.0,0.00011369,2]
[352243270,1739014246221,-151.0,0.00011369,2]
[352243271,1739014246231,-292.242362,0.00011369,2]
[352243272,1739014246241,-500.0,0.00011369,2]
[352243273,1739014246251,-1479.92,0.00011369,2]
[352243274,1739014246260,-292.242362,0.00011369,2]
[352243275,1739014246270,-500.0,0.00011369,2]
[352243276,1739014246280,-500.0,0.00011369,2]
[352243277,1739014246289,-500.0,0.00011369,2]
[352243278,1739014246298,-287.157116,0.00011369,2]
[352243279,1739014246308,-151.0,0.00011369,2]
[352243280,1739014246317,-500.0,0.00011369,2]
[352243281,1739014246327,-151.0,0.00011369,2]
[352243282,1739014246336,-500.0,0.00011369,2]
[352243283,1739014246345,-500.0,0.00011369,2]
[352243285,1739014246355,-287.157116,0.00011369,2]
[352243287,1739014246364,-500.0,0.00011369,2]
[352243289,1739014246373,-638.99,0.00011369,2]
[352243291,1739014246383,-4209.68,0.00011369,2]
[352243293,1739014246393,-3487.73,0.00011369,2]
[352243295,1739014246402,-856.23,0.00011369,2]
[352243296,1739014246410,-4164.04,0.00011369,2]
[352243298,1739014246420,-500.0,0.00011369,2]
[352243300,1739014246430,-893.61,0.00011369,2]
[352243302,1739014246439,-151.0,0.00011369,2]
[352243304,1739014246449,-151.0,0.00011369,2]
[352243306,1739014246459,-500.0,0.00011369,2]
[352243308,1739014246470,-151.0,0.00011369,2]
[352243310,1739014246494,-308.02804,0.00011369,2]
[352243312,1739014246547,-1749.15,0.00011369,2]
[352243314,1739014246678,-1747.62,0.00011369,2]
[352243316,1739014246797,-9145.14,0.00011369,2]
[352243317,1739014246913,-308.02804,0.00011369,2]
[352243318,1739014247028,-500.0,0.00011369,2]
[352243320,1739014247122,-935.88,0.00011369,2]
[352243322,1739014247185,-500.0,0.00011369,2]
[352243323,1739014247282,-1603.73,0.00011369,2]
[352243324,1739014247383,-500.0,0.00011369,2]
[352243325,1739014247528,-550.25,0.00011369,2]
[352243326,1739014247621,-664.04,0.00011369,2]
[352243327,1739014247657,-1378.16,0.00011369,2]
[352243328,1739014247667,-574.102202,0.00011369,2]
[352243329,1739014247677,-574.102202,0.00011369,2]
[352243330,1739014247686,-500.0,0.00011369,2]
[352243331,1739014247696,-500.0,0.00011369,2]
[352243332,1739014247706,-500.0,0.00011369,2]
[352243333,1739014247716,-651.17,0.00011369,2]
[352243334,1739014247727,-4646.5,0.00011369,2]
[352243335,1739014247736,-500.0,0.00011369,2]
[352243336,1739014247746,-500.0,0.00011369,2]
[352243337,1739014247756,-16242.73,0.00011369,2]
[352243338,1739014247766,-500.0,0.00011369,2]
[352243339,1739014247775,-546.78,0.00011369,2]
[352243340,1739014247785,-500.0,0.00011369,2]
[352243341,1739014247795,-1100.89,0.00011369,2]
[352243342,1739014247805,-500.0,0.00011369,2]
[352243343,1739014247817,-1713.87,0.00011369,2]
[352243344,1739014247827,-500.0,0.00011369,2]
[352243345,1739014247836,-3040.25,0.00011369,2]
[352243346,1739014247846,-500.0,0.00011387,2]
[352243347,1739014247856,-500.0,0.00011387,2]
[352243348,1739014247866,-256.56217126,0.00011396,2]
[352243349,1739014247876,-500.0,0.00011397,2]
[352243350,1739014247886,-500.0,0.00011397,2]
[352243351,1739014247899,-500.0,0.000114,2]
[352243352,1739014247909,-500.0,0.000114,2]
[352243353,1739014247919,-500.0,0.000114,2]
[352243354,1739014247929,-500.0,0.000114,2]
[352243355,1739014247939,-500.0,0.000114,2]
[352243356,1739014247949,-502.63900238,0.000114,2]
[352243357,1739014247960,-585.45216601,0.000114,2]
[352243358,1739014247970,-151.0,0.000114,2]
[352243359,1739014247980,-4365.48217213,0.00011406,2]
[352243360,1739014247990,-3117.56603137,0.00011406,2]
[352243361,1739014248000,-151.0,0.000115,2]
[352243362,1739014248010,-151.0,0.000115,2]
[352243363,1739014248020,-500.0,0.00011506,2]
[352243364,1739014248030,-500.0,0.00011506,2]
[352243365,1739014248040,-500.0,0.00011506,2]
[352243366,1739014248050,-500.0,0.00011506,2]
[352243367,1739014248061,-500.0,0.00011506,2]
[352243368,1739014248071,-500.0,0.00011506,2]
[352243369,1739014248081,-500.0,0.00011506,2]
[352243370,1739014248091,-500.0,0.00011506,2]
[352243371,1739014248101,-500.0,0.00011506,2]
[352243372,1739014248112,-500.0,0.00011506,2]
[352243373,1739014248122,-500.0,0.00011506,2]
[352243374,1739014248131,-500.0,0.00011506,2]
[352243375,1739014248142,-500.0,0.00011506,2]
[352243376,1739014248152,-500.0,0.00011506,2]
[352243377,1739014248162,-668.96,0.00011506,2]
[352243378,1739014248172,-500.0,0.00011506,2]
[352243379,1739014248181,-500.0,0.00011506,2]
[352243380,1739014248191,-631.69,0.00011506,2]
[352243381,1739014248202,-500.0,0.00011506,2]
[352243382,1739014248212,-500.0,0.00011506,2]
[352243383,1739014248224,-1314.48,0.00011506,2]
[352243384,1739014248236,-500.0,0.00011506,2]
[352243385,1739014248247,-500.0,0.00011506,2]
[352243386,1739014248257,-1339.1,0.00011506,2]
[352243387,1739014248267,-500.0,0.00011506,2]
[352243388,1739014248278,-500.0,0.00011506,2]
[352243389,1739014248288,-500.0,0.00011506,2]
[352243390,1739014248298,-500.0,0.00011506,2]
[352243391,1739014248308,-500.0,0.00011506,2]
[352243392,1739014248319,-500.0,0.00011506,2]
[352243393,1739014248329,-811.94,0.00011506,2]
[352243394,1739014248339,-500.0,0.00011506,2]
[352243395,1739014248350,-500.0,0.00011506,2]
[352243396,1739014248360,-500.0,0.00011506,2]
[352243397,1739014248372,-600.27658501,0.00011506,2]
[352243398,1739014248382,-500.0,0.00011506,2]
[352243399,1739014248392,-500.0,0.00011506,2]
[352243400,1739014248402,-500.0,0.00011506,2]
[352243401,1739014248413,-151.0,0.00011506,2]
[352243402,1739014248423,-588.8,0.00011506,2]
[352243403,1739014248433,-720.78,0.00011506,2]
[352243404,1739014248444,-500.0,0.00011506,2]
[352243405,1739014248454,-500.0,0.00011506,2]
[352243406,1739014248464,-1458.39,0.00011506,2]
[352243407,1739014248475,-1523.95,0.00011506,2]
[352243408,1739014248485,-217.397984,0.00011506,2]
[352243409,1739014248496,-500.0,0.00011506,2]
[352243410,1739014248507,-217.397984,0.00011506,2]
[352243411,1739014248517,-500.0,0.00011506,2]
[352243412,1739014248527,-500.0,0.00011506,2]
[352243413,1739014248537,-195.907649,0.00011506,2]
[352243414,1739014248548,-195.907649,0.00011506,2]
[352243415,1739014248559,-839.96,0.00011506,2]
[352243416,1739014248570,-151.073598,0.00011506,2]
[352243417,1739014248580,-500.0,0.00011506,2]
[352243418,1739014248591,-151.073598,0.00011506,2]
[352243419,1739014248602,-500.0,0.00011506,2]
[352243420,1739014248613,-500.0,0.00011506,2]
[352243421,1739014248624,-774.62,0.00011506,2]
[352243422,1739014248637,-500.0,0.00011506,2]
[352243423,1739014248647,-918.84,0.00011506,2]
[352243424,1739014248657,-381.857183,0.00011506,2]
[352243425,1739014248667,-500.0,0.00011506,2]
[352243426,1739014248678,-151.0,0.00011506,2]
[352243427,1739014248689,-361.778182,0.00011506,2]
[352243428,1739014248699,-361.778182,0.00011506,2]
[352243429,1739014248710,-151.0,0.00011506,2]
[352243430,1739014248721,-451.639998,0.00011506,2]
[352243431,1739014248731,-451.639998,0.00011506,2]
[352243432,1739014248742,-151.0,0.00011506,2]